[Event "GER-chT States Women 2022"]
[Site "Braunfels"]
[Date "2022.06.18"]
[Round "4.19"]
[White "Moeller, Hannah"]
[Black "Barpiyeva, Gulsana"]
[Result "1/2-1/2"]
[ECO "A38"]
[WhiteElo "1833"]
[BlackElo "2016"]
[Annotator "NA RC"]
[PlyCount "86"]
[EventDate "2022.06.15"]
[EventType "swiss"]
[EventCountry "GER"]
[SourceTitle "playchess.com"]
[Source "ChessBase"]
[SourceQuality "1"]
[TimeControl "40/5400+30:1800+30"]

1. Nf3 {[%emt 0:00:02]} c5 {[%emt 0:00:47]} 2. g3 {[%emt 0:00:04]} Nc6 {[%emt 0:00:47]} 3. Bg2 {[%emt 0:03:46]} g6 {[%emt 0:00:15]} 4. c4 {[%emt 0:00:48]} Bg7 {[%emt 0:00:19]} 5. Nc3 {[%emt 0:00:08]} Nf6 {[%emt 0:01:27]} 6. O-O {[%emt 0:00:09]} O-O {[%emt 0:00:21]} 7. d3 {[%emt 0:00:10]} d6 {[%emt 0:05:11]} 8. Bd2 {[%emt 0:00:36]} a6 {[%emt 0:01:44]} 9. Qc1 {[%emt 0:00:37]} Re8 {[%emt 0:02:31]} 10. a3 {[%emt 0:06:50]} Bg4 {[%emt 0:05:34]} 11. Rb1 {[%emt 0:00:41]} Nd4 {[%emt 0:03:15]} 12. b4 {[%emt 0:04:35]} Nxf3+ {[%emt 0:02:03]} 13. exf3 {[%emt 0:00:49]} Bf5 {[%emt 0:01:38]} 14. Ne4 cxb4 {[%emt 0:04:20]} 15. Rxb4 {[%emt 0:04:57]} d5 {[%emt 0:07:22]} 16. Nxf6+ {[%emt 0:02:33]} Bxf6 {[%emt 0:00:03]} 17. Bg5 {[%emt 0:04:13]} Qa5 {[%emt 0:16:34]} 18. Bxf6 {[%emt 0:01:36]} exf6 {[%emt 0:00:02]} 19. cxd5 {[%emt 0:00:40]} Bxd3 {[%emt 0:02:06]} 20. Rd1 {[%emt 0:03:28]} Be2 {[%emt 0:05:54]} (20... Qxd5 $2 21. Bf1 $18) 21. Rd2 {[%emt 0:08:01]} Rac8 {[%emt 0:03:55]} 22. Qa1 {[%emt 0:08:05]} Qc5 {[%emt 0:03:03]} 23. Rb1 {[%emt 0:02:21]} b5 {[%emt 0:04:42]} 24. f4 {[%emt 0:02:38]} Qd6 {[%emt 0:03:37]} 25. Re1 {[%emt 0:03:27]} Bc4 {[%emt 0:01:06]} 26. Rxe8+ {[%emt 0:02:14]} Rxe8 {[%emt 0:00:02]} 27. Bf1 {[%emt 0:02:08]} Rc8 {[%emt 0:03:22]} (27... Bxd5 $2 28. Bg2 $18) 28. Bxc4 {[%emt 0:01:25]} Rxc4 {[%emt 0:00:12]} (28... bxc4 $15 29. Qc3 Rc5) 29. Qb2 {[%emt 0:04:28]} Kg7 {[%emt 0:00:54]} 30. Rd3 {[%emt 0:02:03]} h5 {[%emt 0:02:53]} 31. h4 {[%emt 0:02:01]} Qc5 {[%emt 0:09:35]} 32. Kg2 {[%emt 0:04:53]} Rc2 {[%emt 0:01:42]} 33. Qd4 {[%emt 0:00:17]} Qd6 {[%emt 0:01:33]} 34. Qb4 {[%emt 0:02:43]} Qd7 {[%emt 0:02:35]} 35. Qd4 {[%emt 0:03:04]} Rc4 {[%emt 0:01:39]} 36. Qb6 {[%emt 0:01:23]} Qf5 {[%emt 0:02:14]} 37. Qe3 {[%emt 0:03:42]} Re4 $11 {[%emt 0:00:54]} 38. Qf3 {[%emt 0:00:15]} Rc4 {[%emt 0:00:54]} 39. d6 {[%emt 0:03:18]} Qd7 {[%emt 0:00:31]} 40. Qe3 {[%emt 0:04:23]} Kf8 {[%emt 0:01:22]} 41. Qb6 {[%emt 0:34:23]} Rc6 {[%emt 0:31:19]} 42. Qd4 {[%emt 0:00:22]} Kg7 {[%emt 0:00:00]} 43. Rd1 {[%emt 0:00:00]} Rc4 {[%emt 0:00:00]} 1/2-1/2

[Event "GER-chT States Women 2022"]
[Site "Braunfels"]
[Date "2022.06.18"]
[Round "4.20"]
[White "Buchholz, Maja"]
[Black "Kiesel, Lara"]
[Result "1-0"]
[ECO "A20"]
[WhiteElo "1945"]
[BlackElo "1737"]
[Annotator "TA"]
[PlyCount "145"]
[EventDate "2022.06.15"]
[EventType "swiss"]
[EventCountry "GER"]
[SourceTitle "playchess.com"]
[Source "ChessBase"]
[SourceQuality "1"]
[TimeControl "40/5400+30:1800+30"]

{[%evp 20,145,20,0,18,27,25,37,48,16,19,-35,-36,-38,-38,-38,-27,-57,-63,-59,-25,-42,72,81,77,82,83,74,86,91,100,100,100,100,100,100,111,108,114,110,115,115,115,115,121,121,121,121,143,130,234,115,245,115,342,158,161,159,164,161,163,156,161,160,141,148,166,158,150,153,163,131,409,402,384,371,386,404,310,289,285,283,273,283,283,272,534,533,514,491,934,929,1209,1182,1000,970,1235,1091,1032,998,1499,923,29973,29975,29974,29975,29973,29975,29978,29979,29979,29978,29978,29979,29979,29980,29983,29984,29983,29984,29984,29985,29993,29994,29995,29996,29997,29998]} 1. c4 {[%emt 0:00:02]} e5 {[%emt 0:00:11]} 2. g3 {[%emt 0:00:04]} Nf6 {[%emt 0:00:19]} 3. Bg2 {[%emt 0:00:11]} d5 {[%emt 0:00:09]} 4. cxd5 {[%emt 0:00:09]} Nxd5 {[%emt 0:00:03]} 5. Nc3 {[%emt 0:00:06]} Nb6 {[%emt 0:00:10]} 6. Nf3 {[%emt 0:00:05]} Nc6 {[%emt 0:00:11]} 7. O-O {[%emt 0:00:08]} Be7 {[%emt 0:00:39]} 8. a3 {[%emt 0:00:08]} a5 {[%emt 0:05:10]} 9. d3 {[%emt 0:00:58]} O-O {[%emt 0:00:40]} 10. Be3 {[%emt 0:00:12]} Be6 {[%emt 0:05:53]} 11. Na4 {[%emt 0:00:50]} Nxa4 {[%emt 0:23:39] A29: English Opening: Four Knights Variation with 4 g3.} 12. Qxa4 {[%emt 0:00:21]} f6 {[%emt 0:08:19]} 13. Rac1 {[%emt 0:00:57]} Qd7 {[%emt 0:02:48] White is slightly better.} 14. Rfd1 {[%emt 0:01:59]} Rfd8 {[%emt 0:02:54] [#]} (14... Bd5 {is interesting.} 15. Nd2 Rfd8 16. h4 Bxg2 17. Kxg2 Rac8) 15. Qb5 $146 {[%emt 0:08:26]} (15. Nd2 $11) ({Predecessor:} 15. Rd2 Nd4 16. Qxd7 Rxd7 17. Bxd4 exd4 18. Rdc2 c6 19. Nd2 Re8 20. Bf3 Bd8 21. b4 axb4 22. axb4 {½-½ (49) Pychova,N (1970)-Suchomelova,S (1827) Hrdonov 2013}) 15... Nd4 $1 $15 {[%emt 0:14:43]} 16. Nxd4 {[%emt 0:03:19]} exd4 {[%emt 0:00:17]} 17. Qxd7 Rxd7 {[%emt 0:00:18]} 18. Bf4 {[%emt 0:11:39][%cal Be3f4,Bf4c7,Bc7b6,Bb6d4,Bd4c3][%mdl 32]} (18. Bxb7 Ra7 19. Bc8 dxe3 20. Bxd7 exf2+ 21. Kxf2 Bxd7 $17) 18... c6 {[%emt 0:00:40]} 19. h4 {[%emt 0:00:42]} Bb3 {[%emt 0:02:00]} 20. Re1 {[%emt 0:00:58]} a4 {[%emt 0:04:25]} (20... Kf7 $15 {keeps the upper hand.}) 21. Bh3 $1 $16 {[%emt 0:00:35]} Rdd8 {[%emt 0:01:57]} 22. Bc7 {[%emt 0:00:33]} Re8 {[%emt 0:04:56]} 23. Bb6 {[%emt 0:01:09]} Bd8 {[%emt 0:08:54]} 24. Bxd4 {[%emt 0:00:29]} Ba5 {[%emt 0:01:35]} 25. Bc3 {[%emt 0:00:17]} Bb6 {[%emt 0:01:18]} 26. d4 {[%emt 0:06:41]} Rad8 {[%emt 0:01:04]} 27. e3 {[%emt 0:00:13]} Kf7 {[%emt 0:00:52]} 28. Bb4 {[%emt 0:01:01]} g6 {[%emt 0:02:35]} 29. Bf1 {[%emt 0:02:35]} Ke6 {[%emt 0:04:28]} 30. Bc4+ $1 {[%emt 0:07:54]} Bxc4 {[%emt 0:00:30]} 31. Rxc4 {[%emt 0:00:05]} f5 {[%emt 0:01:19]} 32. Rec1 {[%emt 0:01:15]} Ra8 {[%emt 0:00:55]} 33. Kg2 {[%emt 0:04:07]} Red8 {[%emt 0:01:12]} 34. Kf3 {[%emt 0:01:14]} Rd5 {[%emt 0:00:55] [#]} (34... Kd5 $16 35. Be7 Rd7) 35. Ke2 {[%emt 0:10:45]} (35. Rxc6+ bxc6 36. Rxc6+ Kf7 37. Rxb6) (35. Rxc6+ $1 $18 {[%mdl 512] and the rest is easy.} bxc6 36. Rxc6+ Kf7 37. Rxb6) 35... Kf6 {[%emt 0:00:36] [#]} (35... Ra6 $16 36. h5 g5) 36. Kd3 {[%emt 0:01:00]} (36. Rxc6+ $1 $18 {[%mdl 512]} bxc6 37. Rxc6+ Kg7 38. Rxb6) 36... Rad8 $2 {[%emt 0:00:59] [#]} (36... Rb5 $16 {was worth a try.} 37. Bc3 Ke6) 37. Bc5 {[%emt 0:04:10]} (37. Rxc6+ $1 $18 {[%mdl 512] is the precise move to win.} bxc6 38. Rxc6+ Kg7 39. Rxb6) 37... Bxc5 {[%emt 0:00:13]} 38. Rxc5 {[%emt 0:00:05][%mdl 4096] Endgame KRR-KRR} Ke6 {[%emt 0:00:18]} 39. R1c4 {[%emt 0:01:16]} Rxc5 {[%emt 0:00:32]} 40. Rxc5 $18 {[%emt 0:00:07] KR-KR} Ra8 {[%emt 0:01:12]} 41. f3 {[%emt 0:37:20]} Ra6 {[%emt 0:06:52]} 42. Rc4 {[%emt 0:00:00]} Kd6 43. e4 {[%emt 0:00:00]} fxe4+ {[%emt 0:16:16]} 44. fxe4 {[%emt 0:00:00]} Ra8 {[%emt 0:02:10]} 45. Ke3 {[%emt 0:00:00]} b5 $2 {[%emt 0:00:50][%mdl 8192]} (45... Ra5 $16 {keeps fighting.} 46. Kd3 Ra8) 46. e5+ {[%emt 0:00:00]} Kd7 47. Rc2 {[%emt 0:00:00]} Re8 {[%emt 0:01:39]} 48. Rf2 {[%emt 0:00:00]} c5 {[%emt 0:02:07]} 49. Ke4 {[%emt 0:00:00]} (49. dxc5 Rxe5+ 50. Kd4 Ke6) ({Less strong is} 49. dxc5 Rxe5+ 50. Kd4 Ke6 $16) 49... cxd4 {[%emt 0:02:05]} 50. Rd2 {[%emt 0:00:00]} ({But not} 50. Kxd4 $6 Rd8 51. Ke4 Ke8 $18) 50... Rc8 {[%emt 0:00:44]} 51. Rxd4+ {[%emt 0:00:00]} Ke7 52. Rb4 {[%emt 0:00:00]} h5 $2 {[%emt 0:01:11]} (52... Ke6 53. Rxb5 Rc4+ 54. Kf3 Rd4) 53. Rxb5 {[%emt 0:00:00]} Rc4+ {[%emt 0:00:08]} 54. Kd5 {[%emt 0:00:00]} Rc2 {[%emt 0:00:31]} (54... Rc7 $142 55. Rb4 Ra7) 55. Rb7+ {[%emt 0:00:00]} Ke8 {[%emt 0:00:08]} 56. Kd6 {[%emt 0:00:00] And now Rb8+ would win.} Rd2+ {[%emt 0:00:05]} 57. Ke6 {[%emt 0:00:00] White wants to mate with Rb8+.} Kd8 {[%emt 0:00:17]} 58. Kf6 {[%emt 0:00:00] Threatens to win with Rb8+.} Rf2+ {[%emt 0:00:23]} 59. Kxg6 {[%emt 0:00:00]} Rg2 {[%emt 0:00:19]} 60. Kf6 {[%emt 0:00:00] Strongly threatening Rb8+.} Rxg3 {[%emt 0:00:05]} 61. Rb8+ {[%emt 0:00:13] White mates.} Kc7 62. Rf8 Rf3+ {[%emt 0:00:43]} 63. Ke7 {[%emt 0:00:50]} Rg3 {[%emt 0:00:41]} 64. e6 {[%emt 0:00:16]} Rg4 {[%emt 0:00:52]} 65. Rf2 {[%emt 0:00:48]} Re4 {[%emt 0:00:54]} 66. Kf7 {[%emt 0:01:01]} Kd6 67. Rd2+ {[%emt 0:00:23]} Kc6 {[%emt 0:00:41]} 68. e7 {[%emt 0:00:23]} Rf4+ {[%emt 0:00:08]} 69. Ke6 {[%emt 0:01:15]} Re4+ {[%emt 0:00:14]} 70. Kf6 {[%emt 0:00:05]} Rf4+ {[%emt 0:00:07]} 71. Ke5 {[%emt 0:00:05]} Rf1 {[%emt 0:00:28]} 72. e8=Q+ {[%emt 0:00:06]} Kb6 {[%emt 0:00:22]} 73. Rd6+ {[%emt 0:01:06] Weighted Error Value: White=0.16 (very precise) /Black=0.34} 1-0

[Event "GER-chT States Women 2022"]
[Site "Braunfels"]
[Date "2022.06.18"]
[Round "4.21"]
[White "Wilmink, Anna"]
[Black "Frank, Michelle Viviane"]
[Result "0-1"]
[ECO "C11"]
[WhiteElo "1700"]
[BlackElo "1882"]
[Annotator "NA RC"]
[PlyCount "100"]
[EventDate "2022.06.15"]
[EventType "swiss"]
[EventCountry "GER"]
[SourceTitle "playchess.com"]
[Source "ChessBase"]
[SourceQuality "1"]
[TimeControl "40/5400+30:1800+30"]

1. e4 {[%emt 0:00:03]} e6 {[%emt 0:00:06]} 2. d4 {[%emt 0:00:05]} d5 {[%emt 0:00:05]} 3. Nc3 {[%emt 0:00:06]} Nf6 {[%emt 0:00:05]} 4. e5 {[%emt 0:00:08]} Nfd7 {[%emt 0:00:08]} 5. f4 {[%emt 0:00:18]} c5 {[%emt 0:00:03]} 6. Nf3 {[%emt 0:00:08]} Nc6 {[%emt 0:00:05]} 7. Be3 {[%emt 0:00:22]} Qa5 {[%emt 0:00:18]} 8. a3 {[%emt 0:01:24]} cxd4 {[%emt 0:02:40]} 9. Nxd4 {[%emt 0:01:21]} a6 {[%emt 0:00:15]} 10. b4 {[%emt 0:02:20]} Qc7 {[%emt 0:00:06]} 11. Qd2 {[%emt 0:02:00]} Be7 {[%emt 0:03:10]} 12. Bd3 {[%emt 0:02:28]} Nb6 {[%emt 0:00:38]} 13. O-O {[%emt 0:03:59]} Bd7 {[%emt 0:00:24]} 14. Nce2 {[%emt 0:02:24]} Nxd4 {[%emt 0:06:08]} 15. Nxd4 {[%emt 0:02:31]} Rc8 {[%emt 0:00:28]} 16. Qe2 {[%emt 0:02:33]} Nc4 {[%emt 0:00:15]} 17. Bf2 {[%emt 0:02:26]} g6 {[%emt 0:02:49]} 18. Kh1 {[%emt 0:03:13]} Nb2 {[%emt 0:00:30]} 19. Qf3 {[%emt 0:04:08]} Nxd3 {[%emt 0:00:12]} 20. cxd3 {[%emt 0:01:01]} Ba4 {[%emt 0:07:23]} 21. Qh3 {[%emt 0:06:07]} Qd7 {[%emt 0:08:20] [#]} 22. Bh4 {[%emt 0:06:10]} ({White should play} 22. g4 $1 $16) 22... Bxh4 {[%emt 0:08:01]} 23. Qxh4 {[%emt 0:00:18]} Qe7 {[%emt 0:00:06]} 24. Qh6 {[%emt 0:07:43]} Qf8 {[%emt 0:01:20]} 25. Qxf8+ {[%emt 0:02:06]} (25. Qg5 $14) 25... Rxf8 {[%emt 0:00:21]} 26. Rac1 {[%emt 0:01:03]} Kd7 {[%emt 0:00:06]} 27. Nf3 {[%emt 0:05:13]} h6 {[%emt 0:00:22]} 28. d4 {[%emt 0:01:45]} Bc2 {[%emt 0:00:19]} 29. Kg1 {[%emt 0:01:24]} Rc7 {[%emt 0:03:00]} 30. Nd2 {[%emt 0:06:05]} Rfc8 {[%emt 0:00:32]} 31. Kf2 {[%emt 0:04:18]} Rc3 {[%emt 0:02:11]} 32. Ra1 {[%emt 0:02:27]} Ba4 {[%emt 0:00:58]} 33. Kg1 {[%emt 0:04:59]} Rd3 {[%emt 0:02:56]} 34. Nf3 {[%emt 0:00:55]} Rcc3 {[%emt 0:00:10]} 35. Rfc1 {[%emt 0:05:07]} Rxc1+ {[%emt 0:00:49]} ({Don't blunder} 35... Rxa3 $2 36. Ne1 Rdb3 37. Rxa3 Rxa3 38. Rb1 $19) 36. Rxc1 {[%emt 0:00:13]} Rxa3 {[%emt 0:00:04]} 37. Rb1 {[%emt 0:02:30]} Ra2 {[%emt 0:00:59]} 38. Ne1 {[%emt 0:02:05]} Bc2 {[%emt 0:00:52]} 39. Rc1 {[%emt 0:01:56]} Be4 {[%emt 0:00:12]} 40. b5 {[%emt 0:03:45]} axb5 {[%emt 0:01:04]} 41. Rc5 {[%emt 0:30:54]} Rb2 {[%emt 0:30:07]} 42. Kf1 {[%emt 0:01:38]} b6 {[%emt 0:00:15]} 43. Rc1 {[%emt 0:00:32]} b4 {[%emt 0:00:40]} 44. Ra1 {[%emt 0:01:44]} b3 {[%emt 0:00:39]} 45. Ra7+ {[%emt 0:01:20]} Kc6 {[%emt 0:00:21]} 46. Ra4 {[%emt 0:03:46]} Kb5 {[%emt 0:00:16]} 47. Ra3 {[%emt 0:00:47]} Kb4 {[%emt 0:00:12]} 48. Ra6 {[%emt 0:00:36]} b5 {[%emt 0:00:08]} 49. Ra1 {[%emt 0:00:28]} Ra2 {[%emt 0:00:08]} 50. Rd1 {[%emt 0:01:20]} b2 {[%emt 0:00:22]} 0-1

[Event "GER-chT States Women 2022"]
[Site "Braunfels"]
[Date "2022.06.18"]
[Round "4.22"]
[White "Lukas, Anne"]
[Black "Grabowski, Petra"]
[Result "0-1"]
[ECO "A05"]
[WhiteElo "2040"]
[BlackElo "1635"]
[Annotator "NA RC"]
[PlyCount "142"]
[EventDate "2022.06.15"]
[EventType "swiss"]
[EventCountry "GER"]
[SourceTitle "playchess.com"]
[Source "ChessBase"]
[SourceQuality "1"]
[TimeControl "40/5400+30:1800+30"]

1. Nf3 {[%emt 0:00:03]} Nf6 {[%emt 0:00:17]} 2. g3 {[%emt 0:00:04]} d5 {[%emt 0:01:01]} 3. Bg2 {[%emt 0:00:05]} c5 {[%emt 0:01:49]} 4. O-O {[%emt 0:00:09]} Bf5 {[%emt 0:02:03]} 5. c4 {[%emt 0:01:34]} Nc6 {[%emt 0:08:41]} 6. cxd5 {[%emt 0:01:28]} Nxd5 {[%emt 0:00:42]} 7. Nc3 {[%emt 0:00:04]} Nc7 {[%emt 0:06:08]} 8. d3 {[%emt 0:00:12]} e5 {[%emt 0:04:06]} 9. Be3 {[%emt 0:05:01]} Qd7 {[%emt 0:03:33]} 10. Ng5 {[%emt 0:01:21]} (10. Qa4 $14) 10... f6 {[%emt 0:03:32]} 11. Nge4 {[%emt 0:00:11]} Nd4 {[%emt 0:17:06]} 12. f4 {[%emt 0:03:55]} exf4 {[%emt 0:02:46]} 13. Bxf4 {[%emt 0:03:21]} Nce6 {[%emt 0:04:55]} 14. Be3 {[%emt 0:18:09]} Be7 {[%emt 0:08:58]} 15. Nd5 {[%emt 0:07:01]} Bxe4 {[%emt 0:03:32]} 16. Bxe4 {[%emt 0:00:23]} O-O {[%emt 0:01:25]} 17. Rc1 {[%emt 0:06:53]} Rac8 {[%emt 0:02:45]} 18. Nxe7+ {[%emt 0:07:55]} ({White should play} 18. Bxd4 $16 Nxd4 19. e3) 18... Qxe7 {[%emt 0:00:06]} 19. Rf2 {[%emt 0:01:01]} (19. Bxd4 $5 Nxd4 20. e3 $14) 19... b6 {[%emt 0:01:40]} 20. Qf1 {[%emt 0:00:22]} Ng5 {[%emt 0:07:04]} 21. Bxg5 {[%emt 0:02:36]} fxg5 {[%emt 0:00:06]} 22. e3 {[%emt 0:04:03]} Rxf2 {[%emt 0:01:08]} 23. Qxf2 {[%emt 0:00:01]} Rf8 {[%emt 0:01:42]} 24. Qg2 {[%emt 0:00:19] [#]} Nf5 {[%emt 0:01:16]} (24... Nf3+ $1 $15 {feels stronger.} 25. Kh1 g4) 25. Qe2 {[%emt 0:02:42]} g6 {[%emt 0:02:10]} 26. b3 {[%emt 0:01:09]} Qe5 {[%emt 0:01:02]} 27. Rf1 {[%emt 0:02:08]} (27. Bxf5 $11 {was preferrable.} Rxf5 28. Qd2) 27... Nd6 {[%emt 0:00:49]} 28. Rxf8+ {[%emt 0:01:14]} Kxf8 {[%emt 0:00:01]} 29. Qf2+ {[%emt 0:03:08]} Kg7 {[%emt 0:00:31]} 30. Bc6 {[%emt 0:03:37]} Nf5 {[%emt 0:00:01]} 31. e4 {[%emt 0:00:13]} Nd4 {[%emt 0:00:02]} 32. Bd5 {[%emt 0:00:06]} Qf6 {[%emt 0:00:31]} 33. a3 {[%emt 0:21:16]} Qxf2+ {[%emt 0:00:49]} 34. Kxf2 {[%emt 0:00:01]} a5 {[%emt 0:01:50]} ({Black should try} 34... Kf6 $17) 35. e5 {[%emt 0:00:40]} Nc2 {[%emt 0:03:11]} 36. a4 {[%emt 0:00:50]} Nb4 {[%emt 0:02:05]} 37. Be4 {[%emt 0:00:04]} Nc2 {[%emt 0:00:56]} 38. h3 {[%emt 0:03:27]} Nd4 {[%emt 0:01:22]} 39. Bd5 {[%emt 0:00:12]} Nc2 {[%emt 0:00:52]} 40. Kf3 {[%emt 0:00:13]} Nd4+ {[%emt 0:04:58]} 41. Ke3 {[%emt 0:31:03]} Nf5+ {[%emt 0:31:20]} 42. Kf2 {[%emt 0:00:00]} Kf8 {[%emt 0:00:00]} 43. g4 {[%emt 0:00:00]} Nd4 {[%emt 0:00:00]} 44. Ke3 {[%emt 0:00:00]} Ke7 {[%emt 0:00:00]} 45. Bc4 {[%emt 0:00:00]} h5 {[%emt 0:00:00]} 46. Ke4 {[%emt 0:00:00]} h4 {[%emt 0:00:00] [#]} 47. Bd5 $4 {[%emt 0:00:00] [#]} (47. Kd5 $1 $18 {was the only winning move.} Ne6 48. Kc6) 47... Ne2 $1 {[%emt 0:00:00]} 48. Ke3 {[%emt 0:00:00]} Nf4 {[%emt 0:00:00]} 49. Be4 {[%emt 0:00:00]} Nxh3 {[%emt 0:00:00]} 50. Bxg6 {[%emt 0:00:00]} Nf4 {[%emt 0:00:00]} 51. Bf5 {[%emt 0:00:00]} h3 {[%emt 0:00:00]} 52. Kf2 {[%emt 0:00:00]} h2 {[%emt 0:00:00]} 53. Be4 {[%emt 0:00:00]} Nxd3+ {[%emt 0:00:00]} 54. Kg2 {[%emt 0:00:00]} Nxe5 {[%emt 0:00:02]} 55. Bf5 {[%emt 0:00:00]} Nf3 {[%emt 0:01:28]} 56. Be4 {[%emt 0:00:00]} Nd4 {[%emt 0:01:55]} 57. Kxh2 {[%emt 0:00:00]} Nxb3 {[%emt 0:00:04]} 58. Kg3 {[%emt 0:00:00]} Kd6 {[%emt 0:00:57]} 59. Kf2 {[%emt 0:00:00]} Ke5 {[%emt 0:00:19]} 60. Ke3 {[%emt 0:00:00]} c4 {[%emt 0:01:48]} 61. Bc2 $19 {[%emt 0:00:00]} Nc5 {[%emt 0:00:32]} 62. Bd1 {[%emt 0:00:11]} Ne6 {[%emt 0:01:25]} 63. Bf3 {[%emt 0:01:54]} Nd4 {[%emt 0:00:34]} 64. Bd1 {[%emt 0:00:10]} b5 {[%emt 0:00:20]} 65. axb5 {[%emt 0:00:32]} Nxb5 {[%emt 0:00:01]} 66. Kd2 {[%emt 0:05:44]} Kd4 {[%emt 0:01:41]} 67. Kc2 {[%emt 0:00:13]} a4 {[%emt 0:00:56]} 68. Kb2 {[%emt 0:00:38]} c3+ {[%emt 0:00:20]} 69. Ka2 {[%emt 0:00:02]} Kd3 {[%emt 0:00:27]} 70. Bxa4 {[%emt 0:00:13]} Nd4 {[%emt 0:00:33]} 71. Kb1 {[%emt 0:00:18]} Kd2 {[%emt 0:00:16]} 0-1

[Event "GER-chT States Women 2022"]
[Site "Braunfels"]
[Date "2022.06.18"]
[Round "4.23"]
[White "Hielscher, Ursula"]
[Black "Werner, Rosalie"]
[Result "0-1"]
[ECO "A53"]
[WhiteElo "1717"]
[BlackElo "1712"]
[Annotator "NA RC"]
[PlyCount "144"]
[EventDate "2022.06.15"]
[EventType "swiss"]
[EventCountry "GER"]
[SourceTitle "playchess.com"]
[Source "ChessBase"]
[SourceQuality "1"]
[TimeControl "40/5400+30:1800+30"]

1. d4 {[%emt 0:00:01]} Nf6 {[%emt 0:00:06]} 2. c4 {[%emt 0:00:03]} d6 {[%emt 0:00:07]} 3. Nc3 {[%emt 0:00:04]} Nbd7 {[%emt 0:00:05]} 4. e4 {[%emt 0:00:40]} e5 {[%emt 0:00:11]} 5. d5 {[%emt 0:00:03]} Nc5 {[%emt 0:00:06]} 6. Qc2 {[%emt 0:01:09]} a5 {[%emt 0:00:07]} 7. g3 {[%emt 0:00:24]} g6 {[%emt 0:01:57]} 8. Bg2 {[%emt 0:01:24]} Bg7 {[%emt 0:00:50]} 9. Be3 {[%emt 0:03:08]} Qe7 {[%emt 0:03:30]} 10. O-O-O {[%emt 0:02:52]} b6 {[%emt 0:04:44]} 11. Bxc5 {[%emt 0:02:55]} bxc5 {[%emt 0:00:58]} 12. Nb5 {[%emt 0:01:40]} O-O {[%emt 0:12:08]} 13. Ne2 {[%emt 0:03:50]} Qd8 {[%emt 0:02:19]} 14. Rhf1 {[%emt 0:06:29]} Kh8 {[%emt 0:12:32]} 15. h3 {[%emt 0:14:39]} Nd7 {[%emt 0:01:35]} 16. g4 {[%emt 0:05:58]} Nb6 {[%emt 0:06:10]} 17. b3 {[%emt 0:02:58]} f5 {[%emt 0:04:18]} 18. f3 {[%emt 0:07:21]} a4 {[%emt 0:05:54]} 19. Kb2 {[%emt 0:10:10]} Qe7 {[%emt 0:04:56]} 20. Nec3 {[%emt 0:05:37]} axb3 {[%emt 0:03:27]} 21. axb3 {[%emt 0:00:44]} Bh6 {[%emt 0:13:08]} 22. Qe2 {[%emt 0:06:29]} Bf4 {[%emt 0:04:57]} 23. Qe1 {[%emt 0:03:12]} fxg4 {[%emt 0:05:28]} 24. hxg4 {[%emt 0:01:58]} Bb7 {[%emt 0:01:18]} 25. Rh1 {[%emt 0:00:56]} Kg7 {[%emt 0:01:19]} 26. Qh4 {[%emt 0:01:01]} Qxh4 {[%emt 0:00:40]} 27. Rxh4 {[%emt 0:00:01]} Rfc8 {[%emt 0:01:08]} 28. Rdh1 {[%emt 0:03:57]} h6 {[%emt 0:00:26]} 29. Ne2 {[%emt 0:01:26]} Bg5 {[%emt 0:00:52]} 30. R4h2 {[%emt 0:01:09]} Ba6 {[%emt 0:01:00]} 31. Nec3 {[%emt 0:00:43]} Kf7 {[%emt 0:02:38]} 32. Rf1 {[%emt 0:02:03]} Bf4 {[%emt 0:01:16]} 33. Rhh1 {[%emt 0:00:41]} Bxb5 {[%emt 0:02:42]} 34. Nxb5 {[%emt 0:00:17]} Ke7 {[%emt 0:00:45]} 35. g5 {[%emt 0:01:33]} Bxg5 {[%emt 0:00:28]} 36. Bh3 {[%emt 0:00:23]} Nd7 {[%emt 0:00:31]} 37. Ra1 {[%emt 0:02:16]} Kd8 {[%emt 0:01:25]} 38. Na7 {[%emt 0:01:35]} Rxa7 {[%emt 0:01:18]} 39. Rxa7 {[%emt 0:00:21]} Rb8 {[%emt 0:00:19]} 40. Kc2 {[%emt 0:01:31]} Nf6 {[%emt 0:01:29]} 41. Be6 {[%emt 0:32:20]} Nh5 {[%emt 0:30:46]} 42. Rha1 {[%emt 0:00:48]} Nf4 {[%emt 0:00:40]} 43. Ra8 {[%emt 0:02:23]} Rxa8 {[%emt 0:00:24]} 44. Rxa8+ {[%emt 0:00:02]} Ke7 {[%emt 0:00:13]} 45. Bc8 {[%emt 0:00:00]} Ne2 {[%emt 0:00:00]} 46. Rb8 {[%emt 0:00:00]} Nd4+ {[%emt 0:00:00]} 47. Kd3 {[%emt 0:00:00]} Nxf3 {[%emt 0:00:00]} 48. Bg4 {[%emt 0:00:00]} Ne1+ {[%emt 0:00:00]} 49. Ke2 {[%emt 0:00:00]} Ng2 {[%emt 0:00:00]} 50. Rg8 {[%emt 0:00:00]} Nf4+ {[%emt 0:00:00]} 51. Kf2 {[%emt 0:00:00]} Kf7 {[%emt 0:00:00]} 52. Rc8 {[%emt 0:00:00]} Be7 {[%emt 0:00:00]} 53. Rxc7 {[%emt 0:00:00]} h5 {[%emt 0:00:00]} 54. Bf3 {[%emt 0:00:00]} g5 {[%emt 0:00:00]} 55. Ra7 {[%emt 0:00:02]} g4 {[%emt 0:02:54]} 56. Bd1 {[%emt 0:00:35]} Kf6 {[%emt 0:01:06]} 57. Kg3 {[%emt 0:01:18]} Ng6 {[%emt 0:00:19]} 58. Ra2 {[%emt 0:00:51]} Kg5 {[%emt 0:00:12]} 59. Ra8 {[%emt 0:01:11]} h4+ {[%emt 0:00:44]} 60. Kf2 {[%emt 0:00:45]} Bf8 {[%emt 0:01:26]} 61. Ra7 {[%emt 0:00:59]} Kf4 {[%emt 0:01:37]} 62. Rf7+ {[%emt 0:00:20]} Kg5 {[%emt 0:00:24]} 63. Be2 {[%emt 0:00:43]} g3+ {[%emt 0:00:41]} 64. Kf1 {[%emt 0:00:25]} Be7 {[%emt 0:00:35]} 65. Rf5+ {[%emt 0:00:10]} Kh6 {[%emt 0:00:07]} 66. Bg4 {[%emt 0:01:26]} Nf4 {[%emt 0:00:44]} 67. Rf7 {[%emt 0:00:32]} Ng6 {[%emt 0:00:53]} 68. Kg1 {[%emt 0:00:26]} Bg5 {[%emt 0:00:21]} 69. Rd7 {[%emt 0:00:33]} Be3+ {[%emt 0:00:25]} 70. Kh1 {[%emt 0:00:44]} Nf4 {[%emt 0:00:16]} 71. Rxd6+ {[%emt 0:00:38]} Kg5 {[%emt 0:00:12]} 72. Bf3 {[%emt 0:00:28]} h3 {[%emt 0:00:07]} 0-1